[Event "Championnat d'Europe de Blitz"]
[Date "2024.12.09"]
[White "Kuzubov, Yuriy"]
[Black "Biljanic, Ljubomir"]
[WhiteElo "2595"]
[BlackElo "2130"]
[Round "4.37"]
[Result "1/2-1/2"]
[TimeControl "180+2"]

1. d4 {[%emt 00:00:02] [%clk 00:03:02]} Nf6 {[%emt 00:00:02] [%clk 00:03:03]} 2.
Nf3 {[%emt 00:00:01] [%clk 00:03:03]} e6 {[%emt 00:00:02] [%clk 00:03:03]} 3. c4
{[%clk 00:03:04]} d5 {[%emt 00:00:03] [%clk 00:03:02]} 4. Nc3 {[%clk 00:03:04]}
Be7 {[%emt 00:00:03] [%clk 00:03:02]} 5. cxd5 {[%emt 00:00:03] [%clk 00:03:04]}
exd5 {[%emt 00:00:01] [%clk 00:03:03]} 6. Bf4 {[%emt 00:00:02] [%clk 00:03:04]}
c6 {[%emt 00:00:06] [%clk 00:02:59]} 7. e3 {[%emt 00:00:01] [%clk 00:03:05]} O-O
{[%emt 00:00:02] [%clk 00:02:59]} 8. Qc2 {[%emt 00:00:04] [%clk 00:03:03]} Nh5
{[%emt 00:00:11] [%clk 00:02:49]} 9. Bd3 {[%emt 00:00:08] [%clk 00:02:58]} h6
{[%emt 00:00:18] [%clk 00:02:34]} 10. O-O {[%emt 00:00:23] [%clk 00:02:37]} Nxf4
{[%emt 00:00:12] [%clk 00:02:23]} 11. exf4 {[%emt 00:00:01] [%clk 00:02:38]} Nd7
{[%emt 00:00:05] [%clk 00:02:21]} 12. Rfe1 {[%emt 00:00:04] [%clk 00:02:35]} Re8
{[%emt 00:00:20] [%clk 00:02:03]} 13. Re3 {[%emt 00:00:16] [%clk 00:02:21]} Bd6
{[%emt 00:00:14] [%clk 00:01:50]} 14. Ne5 {[%emt 00:00:07] [%clk 00:02:16]} Bxe5
{[%emt 00:00:28] [%clk 00:01:25]} 15. fxe5 {[%emt 00:00:02] [%clk 00:02:16]} c5
{[%emt 00:00:26] [%clk 00:01:01]} 16. Nxd5 {[%emt 00:00:55] [%clk 00:01:23]}
cxd4 {[%emt 00:00:03] [%clk 00:01:00]} 17. Re2 {[%emt 00:01:09] [%clk 00:00:16]}
Rxe5 {[%emt 00:00:06] [%clk 00:00:55]} 18. Rae1 {[%emt 00:00:02] [%clk
00:00:17]} Rxe2 {[%emt 00:00:12] [%clk 00:00:45]} 19. Rxe2 {[%emt 00:00:05]
[%clk 00:00:13]} Nf6 {[%emt 00:00:21] [%clk 00:00:25]} 20. Nxf6+ {[%emt
00:00:07] [%clk 00:00:10]} gxf6 {[%clk 00:00:26]} 21. Qd2 {[%emt 00:00:03] [%clk
00:00:09]} Qf8 {[%emt 00:00:08] [%clk 00:00:19]} 22. Qf4 {[%emt 00:00:04] [%clk
00:00:07]} Be6 {[%emt 00:00:02] [%clk 00:00:19]} 23. Qxf6 {[%emt 00:00:03] [%clk
00:00:07]} Rc8 {[%emt 00:00:01] [%clk 00:00:20]} 24. h3 {[%emt 00:00:03] [%clk
00:00:07]} Qg7 {[%emt 00:00:02] [%clk 00:00:19]} 25. Qf4 {[%emt 00:00:02] [%clk
00:00:06]} Qg5 {[%emt 00:00:03] [%clk 00:00:19]} 26. Qxd4 {[%emt 00:00:04] [%clk
00:00:04]} Rd8 {[%emt 00:00:03] [%clk 00:00:18]} 27. Qe3 {[%emt 00:00:01] [%clk
00:00:05]} Qxe3 {[%emt 00:00:03] [%clk 00:00:17]} 28. Rxe3 {[%clk 00:00:06]}
Bxa2 {[%clk 00:00:18]} 29. Be4 {[%emt 00:00:02] [%clk 00:00:07]} b6 {[%emt
00:00:08] [%clk 00:00:12]} 30. Ra3 {[%emt 00:00:01] [%clk 00:00:07]} Rd1+ {[%emt
00:00:03] [%clk 00:00:11]} 31. Kh2 {[%clk 00:00:09]} Bd5 {[%emt 00:00:02] [%clk
00:00:12]} 32. Bxd5 {[%emt 00:00:06] [%clk 00:00:06]} Rxd5 {[%clk 00:00:13]} 33.
Rxa7 {[%emt 00:00:01] [%clk 00:00:07]} Rd2 {[%clk 00:00:14]} 34. b4 {[%emt
00:00:02] [%clk 00:00:07]} Rb2 {[%emt 00:00:02] [%clk 00:00:14]} 35. Ra4 {[%emt
00:00:03] [%clk 00:00:07]} Kg7 {[%emt 00:00:03] [%clk 00:00:13]} 36. f3 {[%emt
00:00:02] [%clk 00:00:07]} b5 {[%clk 00:00:14]} 37. Ra6 {[%clk 00:00:08]} Rxb4
{[%emt 00:00:01] [%clk 00:00:15]} 38. g3 {[%emt 00:00:03] [%clk 00:00:07]} Rb1
{[%emt 00:00:02] [%clk 00:00:15]} 39. g4 {[%clk 00:00:08]} b4 {[%emt 00:00:02]
[%clk 00:00:16]} 40. Rb6 {[%clk 00:00:09]} b3 {[%clk 00:00:18]} 41. Kg3 {[%emt
00:00:02] [%clk 00:00:07]} b2 {[%emt 00:00:04] [%clk 00:00:18]} 42. h4 {[%clk
00:00:07]} Kf8 {[%emt 00:00:03] [%clk 00:00:18]} 43. Kf4 {[%clk 00:00:08]} Ke7
{[%emt 00:00:03] [%clk 00:00:18]} 44. h5 {[%clk 00:00:07]}

[Site "Europe Echecs"]

[Event "Championnat d'Europe de Blitz"]
[Date "2024.12.09"]
[White "Paichadze, Luka"]
[Black "Aymerich Verdaguer, Eduard"]
[WhiteElo "2532"]
[BlackElo "2163"]
[Round "4.38"]
[Result "1-0"]
[TimeControl "180+2"]

1. e4 {[%emt 00:00:02] [%clk 00:03:02]} c5 {[%emt 00:00:01] [%clk 00:03:03]} 2.
Nf3 {[%clk 00:03:03]} e6 {[%emt 00:00:03] [%clk 00:03:04]} 3. c3 {[%clk
00:03:04]} Nf6 {[%emt 00:00:12] [%clk 00:02:54]} 4. Bd3 {[%emt 00:00:01] [%clk
00:03:04]} Nc6 {[%emt 00:00:12] [%clk 00:02:44]} 5. Bc2 {[%emt 00:00:03] [%clk
00:03:03]} e5 {[%emt 00:00:24] [%clk 00:02:23]} 6. d4 {[%emt 00:00:02] [%clk
00:03:03]} d6 {[%emt 00:00:01] [%clk 00:02:23]} 7. h3 {[%emt 00:00:01] [%clk
00:03:04]} h6 {[%emt 00:00:08] [%clk 00:02:17]} 8. O-O {[%emt 00:00:06] [%clk
00:03:00]} Be7 {[%emt 00:00:03] [%clk 00:02:16]} 9. Ba4 {[%emt 00:00:05] [%clk
00:02:57]} Bd7 {[%emt 00:00:10] [%clk 00:02:08]} 10. Re1 {[%emt 00:00:05] [%clk
00:02:53]} Qc7 {[%emt 00:00:06] [%clk 00:02:04]} 11. Nbd2 {[%emt 00:00:39] [%clk
00:02:16]} O-O {[%emt 00:00:51] [%clk 00:01:16]} 12. Nf1 {[%emt 00:00:16] [%clk
00:02:02]} a6 {[%emt 00:00:05] [%clk 00:01:14]} 13. d5 {[%emt 00:00:07] [%clk
00:01:56]} Nb8 {[%emt 00:00:13] [%clk 00:01:02]} 14. Bxd7 {[%emt 00:00:02] [%clk
00:01:56]} Nbxd7 {[%emt 00:00:01] [%clk 00:01:03]} 15. Ng3 {[%emt 00:00:01]
[%clk 00:01:57]} Rfe8 {[%emt 00:00:02] [%clk 00:01:02]} 16. Nf5 {[%emt 00:00:09]
[%clk 00:01:50]} Bf8 {[%emt 00:00:01] [%clk 00:01:04]} 17. a4 {[%emt 00:00:04]
[%clk 00:01:48]} Kh7 {[%emt 00:00:01] [%clk 00:01:04]} 18. a5 {[%emt 00:00:04]
[%clk 00:01:46]} g6 {[%emt 00:00:04] [%clk 00:01:01]} 19. Ng3 {[%emt 00:00:03]
[%clk 00:01:45]} Bg7 {[%emt 00:00:03] [%clk 00:01:01]} 20. Be3 {[%emt 00:00:08]
[%clk 00:01:38]} b5 {[%emt 00:00:26] [%clk 00:00:37]} 21. axb6 {[%emt 00:00:03]
[%clk 00:01:37]} Nxb6 {[%emt 00:00:01] [%clk 00:00:38]} 22. Nd2 {[%emt 00:00:09]
[%clk 00:01:29]} Reb8 {[%emt 00:00:09] [%clk 00:00:32]} 23. Ra2 {[%emt 00:00:02]
[%clk 00:01:29]} a5 {[%emt 00:00:03] [%clk 00:00:31]} 24. Qe2 {[%emt 00:00:10]
[%clk 00:01:20]} Ra7 {[%emt 00:00:08] [%clk 00:00:25]} 25. Rea1 {[%emt 00:00:02]
[%clk 00:01:20]} Rba8 {[%emt 00:00:02]} 26. Nc4 {[%emt 00:00:35] [%clk
00:00:46]} Nxc4 {[%emt 00:00:02] [%clk 00:00:27]} 27. Qxc4 {[%emt 00:00:01]
[%clk 00:00:47]} Qb6 {[%clk 00:00:28]} 28. Nf1 {[%emt 00:00:13] [%clk 00:00:37]}
Nd7 {[%emt 00:00:04] [%clk 00:00:25]} 29. Nd2 {[%emt 00:00:03] [%clk 00:00:35]}
Bf6 {[%emt 00:00:09] [%clk 00:00:19]} 30. Qa4 {[%emt 00:00:02] [%clk 00:00:35]}
Bd8 {[%emt 00:00:10] [%clk 00:00:11]} 31. Nc4 {[%emt 00:00:01] [%clk 00:00:36]}
Qc7 {[%emt 00:00:02] [%clk 00:00:12]} 32. b4 {[%emt 00:00:21] [%clk 00:00:17]}
Nb6 {[%emt 00:00:02] [%clk 00:00:12]} 33. Nxb6 {[%emt 00:00:02] [%clk 00:00:16]}
Qxb6 {[%clk 00:00:13]} 34. bxc5 {[%emt 00:00:03] [%clk 00:00:15]} dxc5 {[%clk
00:00:14]} 35. Rc2 {[%emt 00:00:10] [%clk 00:00:07]} Be7 {[%emt 00:00:01] [%clk
00:00:15]} 36. Rcc1 {[%clk 00:00:08]} Rb7 {[%emt 00:00:02] [%clk 00:00:16]} 37.
Kh2 {[%emt 00:00:03] [%clk 00:00:07]} Bd6 {[%clk 00:00:17]} 38. Rcb1 {[%emt
00:00:04] [%clk 00:00:05]} Qxb1 {[%emt 00:00:02] [%clk 00:00:17]} 39. Rxb1
{[%clk 00:00:07]} Rxb1 {[%emt 00:00:01] [%clk 00:00:18]} 40. Qd7 {[%emt
00:00:01] [%clk 00:00:08]} Ra6 {[%emt 00:00:07] [%clk 00:00:13]} 41. Qxf7+
{[%emt 00:00:01] [%clk 00:00:08]} Kh8 {[%clk 00:00:14]} 42. Bxh6 {[%emt
00:00:03] [%clk 00:00:07]} 1-0

[Site "Europe Echecs"]

[Event "Championnat d'Europe de Blitz"]
[Date "2024.12.09"]
[White "Kalezic, Blazo"]
[Black "Papadimitriou, Athanasios"]
[WhiteElo "2382"]
[BlackElo "2267"]
[Round "4.39"]
[Result "1-0"]
[TimeControl "180+2"]

1. e4 {[%emt 00:00:02] [%clk 00:03:01]} d5 {[%emt 00:00:04] [%clk 00:03:03]} 2.
exd5 {[%emt 00:00:01] [%clk 00:03:00]} Nf6 {[%emt 00:00:02] [%clk 00:03:03]} 3.
Nf3 {[%emt 00:00:07] [%clk 00:02:55]} Nxd5 {[%emt 00:00:02] [%clk 00:03:04]} 4.
d4 {[%emt 00:00:03] [%clk 00:02:53]} g6 {[%emt 00:00:02] [%clk 00:03:04]} 5. h3
{[%emt 00:00:02] [%clk 00:02:53]} Bg7 {[%emt 00:00:01] [%clk 00:03:05]} 6. Be2
{[%emt 00:00:08] [%clk 00:02:46]} O-O {[%emt 00:00:03] [%clk 00:03:04]} 7. O-O
{[%emt 00:00:02] [%clk 00:02:46]} Nc6 {[%emt 00:00:03] [%clk 00:03:03]} 8. a3
{[%emt 00:00:16] [%clk 00:02:32]} Nb6 {[%emt 00:00:18] [%clk 00:02:47]} 9. Be3
{[%emt 00:00:13] [%clk 00:02:20]} e5 {[%emt 00:00:02] [%clk 00:02:47]} 10. dxe5
{[%emt 00:00:18] [%clk 00:02:04]} Nxe5 {[%emt 00:00:04] [%clk 00:02:46]} 11.
Nxe5 {[%emt 00:00:12] [%clk 00:01:55]} Bxe5 {[%emt 00:00:02] [%clk 00:02:46]}
12. Nc3 {[%emt 00:00:06] [%clk 00:01:50]} Be6 {[%emt 00:00:08] [%clk 00:02:39]}
13. Qe1 {[%emt 00:00:54] [%clk 00:00:59]} Qh4 {[%emt 00:00:46] [%clk 00:01:55]}
14. f4 {[%emt 00:00:11] [%clk 00:00:50]} Qxe1 {[%emt 00:00:03] [%clk 00:01:54]}
15. Raxe1 {[%emt 00:00:02] [%clk 00:00:50]} Bg7 {[%emt 00:00:11] [%clk
00:01:45]} 16. Nb5 {[%emt 00:00:30] [%clk 00:00:22]} Nc4 {[%emt 00:00:12] [%clk
00:01:35]} 17. Bd4 {[%emt 00:00:07] [%clk 00:00:17]} Bxd4+ {[%emt 00:00:53]
[%clk 00:00:45]} 18. Nxd4 {[%emt 00:00:02] [%clk 00:00:18]} Bd5 {[%emt 00:00:03]
[%clk 00:00:44]} 19. b3 {[%emt 00:00:06] [%clk 00:00:14]} Nd2 {[%emt 00:00:07]
[%clk 00:00:39]} 20. Rf2 {[%emt 00:00:02] [%clk 00:00:14]} Rfe8 {[%emt 00:00:03]
[%clk 00:00:38]} 21. Rd1 {[%emt 00:00:05] [%clk 00:00:11]} Ne4 {[%emt 00:00:02]
[%clk 00:00:38]} 22. Rf3 {[%emt 00:00:02] [%clk 00:00:10]} Rad8 {[%emt 00:00:09]
[%clk 00:00:33]} 23. b4 {[%emt 00:00:03] [%clk 00:00:08]} b6 {[%emt 00:00:08]
[%clk 00:00:27]} 24. Bf1 {[%emt 00:00:02] [%clk 00:00:08]} c5 {[%emt 00:00:03]
[%clk 00:00:25]} 25. Nb5 {[%emt 00:00:03] [%clk 00:00:07]} Bb7 {[%emt 00:00:12]
[%clk 00:00:16]} 26. Rfd3 {[%emt 00:00:03] [%clk 00:00:06]} Rxd3 {[%emt
00:00:04] [%clk 00:00:14]} 27. Rxd3 {[%emt 00:00:01] [%clk 00:00:07]} Ba6 {[%emt
00:00:02] [%clk 00:00:15]} 28. Rd7 {[%clk 00:00:07]} Bxb5 {[%emt 00:00:06] [%clk
00:00:12]} 29. Bxb5 {[%clk 00:00:08]} Nc3 {[%emt 00:00:03] [%clk 00:00:10]} 30.
Bc4 {[%emt 00:00:01] [%clk 00:00:09]} Rf8 {[%emt 00:00:08] [%clk 00:00:04]} 31.
Rxa7 {[%emt 00:00:04] [%clk 00:00:07]} b5 {[%emt 00:00:03] [%clk 00:00:04]} 32.
Bf1 {[%emt 00:00:03] [%clk 00:00:06]} c4 {[%clk 00:00:05]} 33. Kf2 {[%emt
00:00:01] [%clk 00:00:07]} Rd8 {[%emt 00:00:01] [%clk 00:00:06]} 34. Ke3 {[%emt
00:00:02] [%clk 00:00:07]} Nd1+ {[%emt 00:00:02] [%clk 00:00:07]} 35. Kf3 {[%emt
00:00:01] [%clk 00:00:07]} Nc3 {[%emt 00:00:01] [%clk 00:00:07]} 36. Re7 {[%emt
00:00:02] [%clk 00:00:08]} Kf8 {[%emt 00:00:01] [%clk 00:00:08]} 37. Re5 {[%emt
00:00:01] [%clk 00:00:08]} Ra8 {[%emt 00:00:02] [%clk 00:00:08]} 38. Re3 {[%emt
00:00:03] [%clk 00:00:08]} Rxa3 {[%emt 00:00:01] [%clk 00:00:09]} 39. g4 {[%emt
00:00:01] [%clk 00:00:08]}

[Site "Europe Echecs"]

[Event "Championnat d'Europe de Blitz"]
[Date "2024.12.09"]
[White "Avramidou, Anastasia"]
[Black "Guliyev, Namig"]
[WhiteElo "2298"]
[BlackElo "2484"]
[Round "4.40"]
[Result "0-1"]
[TimeControl "180+2"]

1. d4 {[%emt 00:00:02] [%clk 00:03:02]} d5 {[%emt 00:00:01] [%clk 00:03:03]} 2.
c4 {[%emt 00:00:03]} dxc4 {[%clk 00:03:03]} 3. Nf3 {[%emt 00:00:02] [%clk
00:03:02]} Nf6 {[%emt 00:00:02] [%clk 00:03:03]} 4. e3 {[%emt 00:00:02] [%clk
00:03:03]} e6 {[%emt 00:00:01] [%clk 00:03:04]} 5. Bxc4 {[%emt 00:00:02] [%clk
00:03:03]} a6 {[%emt 00:00:02] [%clk 00:03:05]} 6. O-O {[%emt 00:00:07] [%clk
00:02:57]} Nbd7 {[%emt 00:00:01] [%clk 00:03:05]} 7. Re1 {[%emt 00:00:05] [%clk
00:02:54]} c5 {[%emt 00:00:02] [%clk 00:03:05]} 8. Bf1 {[%emt 00:00:35] [%clk
00:02:21]} cxd4 {[%emt 00:00:05] [%clk 00:03:03]} 9. exd4 {[%emt 00:00:11] [%clk
00:02:12]} Be7 {[%emt 00:00:02] [%clk 00:03:03]} 10. Nc3 {[%emt 00:00:02] [%clk
00:02:12]} Nb6 {[%emt 00:00:02] [%clk 00:03:03]} 11. Bg5 {[%emt 00:00:09] [%clk
00:02:06]} O-O {[%emt 00:00:05] [%clk 00:03:00]} 12. a3 {[%emt 00:00:14] [%clk
00:01:54]} h6 {[%emt 00:00:02] [%clk 00:03:00]} 13. Bh4 {[%emt 00:00:02] [%clk
00:01:54]} Nbd5 {[%emt 00:00:07] [%clk 00:02:55]} 14. Qc2 {[%emt 00:00:25] [%clk
00:01:32]} b5 {[%emt 00:00:12] [%clk 00:02:45]} 15. Ne5 {[%emt 00:00:20] [%clk
00:01:14]} Bb7 {[%emt 00:00:03] [%clk 00:02:45]} 16. Nxd5 {[%emt 00:00:15] [%clk
00:01:01]} Nxd5 {[%emt 00:00:12] [%clk 00:02:35]} 17. Bxe7 {[%emt 00:00:06]
[%clk 00:00:57]} Nxe7 {[%emt 00:00:02] [%clk 00:02:35]} 18. Rad1 {[%emt
00:00:05] [%clk 00:00:54]} Rc8 {[%emt 00:00:01] [%clk 00:02:35]} 19. Qd2 {[%emt
00:00:02] [%clk 00:00:54]} Qd6 {[%emt 00:00:06] [%clk 00:02:30]} 20. Qf4 {[%emt
00:00:06] [%clk 00:00:50]} Nd5 {[%emt 00:00:08] [%clk 00:02:24]} 21. Qg3 {[%emt
00:00:04] [%clk 00:00:49]} Rc2 {[%emt 00:00:08] [%clk 00:02:19]} 22. Rb1 {[%emt
00:00:07] [%clk 00:00:44]} Nf6 {[%emt 00:00:08] [%clk 00:02:13]} 23. Red1 {[%emt
00:00:13] [%clk 00:00:32]} Ne4 {[%emt 00:00:05] [%clk 00:02:09]} 24. Qe3 {[%emt
00:00:11] [%clk 00:00:24]} Nxf2 {[%emt 00:00:13] [%clk 00:01:58]} 25. Rd2 {[%emt
00:00:02] [%clk 00:00:24]} Rxd2 {[%emt 00:00:03] [%clk 00:01:56]} 26. Qxd2
{[%emt 00:00:01] [%clk 00:00:25]} Ne4 {[%emt 00:00:02] [%clk 00:01:56]} 27. Qe3
{[%emt 00:00:02] [%clk 00:00:26]} Rd8 {[%emt 00:00:03] [%clk 00:01:54]} 28. Rd1
{[%emt 00:00:03] [%clk 00:00:26]} Nf6 {[%emt 00:00:17] [%clk 00:01:40]} 29. h3
{[%emt 00:00:01] [%clk 00:00:27]} Rc8 {[%emt 00:00:06] [%clk 00:01:35]} 30. Rd2
{[%emt 00:00:03] [%clk 00:00:25]} Rc7 {[%emt 00:00:13] [%clk 00:01:24]} 31. a4
{[%emt 00:00:20] [%clk 00:00:08]} bxa4 {[%emt 00:00:03] [%clk 00:01:22]} 32. Qa3
{[%emt 00:00:04] [%clk 00:00:06]} Qxa3 {[%emt 00:00:03] [%clk 00:01:22]} 33.
bxa3 {[%clk 00:00:07]} Rc3 {[%emt 00:00:05] [%clk 00:01:20]} 34. Rb2 {[%emt
00:00:01] [%clk 00:00:09]} Rb3 {[%emt 00:00:02] [%clk 00:01:19]} 35. Rc2 {[%emt
00:00:08] [%clk 00:00:04]} Nd5 {[%emt 00:00:03] [%clk 00:01:17]} 36. Nd7 {[%emt
00:00:02] [%clk 00:00:03]} Rxa3 {[%emt 00:00:14] [%clk 00:01:05]} 37. Nc5 {[%emt
00:00:01] [%clk 00:00:04]} Bc8 {[%emt 00:00:02] [%clk 00:01:05]} 38. Nxa4 {[%emt
00:00:03] [%clk 00:00:04]} Rxa4 {[%emt 00:00:06] [%clk 00:01:02]} 39. Rxc8+
{[%clk 00:00:05]} Kh7 {[%emt 00:00:02] [%clk 00:01:02]} 40. Bd3+ {[%clk
00:00:07]} g6 {[%emt 00:00:03] [%clk 00:01:01]} 41. Ra8 {[%clk 00:00:08]} Rxd4
{[%emt 00:00:07] [%clk 00:00:56]} 42. Be2 {[%emt 00:00:06] [%clk 00:00:04]} Rd2
{[%emt 00:00:05] [%clk 00:00:53]} 43. Bf3 {[%emt 00:00:01] [%clk 00:00:05]} Nb4
{[%emt 00:00:04] [%clk 00:00:50]} 44. Ra7 {[%emt 00:00:01] [%clk 00:00:06]} Kg7
{[%emt 00:00:01] [%clk 00:00:51]} 45. Bg4 {[%emt 00:00:04] [%clk 00:00:04]} h5
{[%emt 00:00:04] [%clk 00:00:49]} 46. Bxe6 {[%emt 00:00:01] [%clk 00:00:05]} h4
{[%emt 00:00:10] [%clk 00:00:41]} 47. Bxf7 {[%emt 00:00:01] [%clk 00:00:05]} Kh6
{[%emt 00:00:01] [%clk 00:00:42]} 48. Bc4 {[%emt 00:00:01] [%clk 00:00:06]} Rc2
{[%emt 00:00:04] [%clk 00:00:40]} 49. Bg8 {[%emt 00:00:02] [%clk 00:00:05]} Kg5
{[%emt 00:00:03] [%clk 00:00:39]} 50. Bf7 {[%emt 00:00:04] [%clk 00:00:04]} Rc6
{[%emt 00:00:02] [%clk 00:00:39]} 51. Be8 {[%emt 00:00:01] [%clk 00:00:05]} Rc1+
{[%emt 00:00:02] [%clk 00:00:40]} 52. Kh2 {[%emt 00:00:03] [%clk 00:00:03]} Re1
{[%emt 00:00:04] [%clk 00:00:38]} 53. Bd7 {[%emt 00:00:02] [%clk 00:00:04]} Re2
{[%emt 00:00:04] [%clk 00:00:36]} 54. Rb7 {[%emt 00:00:02] [%clk 00:00:04]} Nd3
{[%emt 00:00:05] [%clk 00:00:33]} 55. Bg4 {[%emt 00:00:02] [%clk 00:00:05]} Re5
{[%emt 00:00:02] [%clk 00:00:32]} 56. Kg1 {[%emt 00:00:03] [%clk 00:00:04]} a5
{[%emt 00:00:02] [%clk 00:00:33]} 57. Ra7 {[%emt 00:00:01] [%clk 00:00:05]} Nf4
{[%emt 00:00:01] [%clk 00:00:33]} 58. Bf3 {[%emt 00:00:01] [%clk 00:00:06]} Rc5
{[%emt 00:00:02]} 59. Kf2 {[%clk 00:00:07]} Kf5 {[%emt 00:00:02] [%clk
00:00:34]} 60. Rf7+ {[%clk 00:00:08]} Ke5 {[%emt 00:00:01] [%clk 00:00:35]} 61.
Ra7 {[%emt 00:00:01] [%clk 00:00:09]} g5 {[%clk 00:00:36]} 62. Rg7 {[%emt
00:00:01] [%clk 00:00:10]} Kd4 {[%clk 00:00:37]} 63. Bg4 {[%emt 00:00:06] [%clk
00:00:07]} Kc3 {[%emt 00:00:02] [%clk 00:00:36]} 64. Ra7 {[%emt 00:00:03] [%clk
00:00:06]} Kb4 {[%emt 00:00:01] [%clk 00:00:37]} 65. Bd7 {[%emt 00:00:02] [%clk
00:00:06]} Rd5 {[%emt 00:00:01] [%clk 00:00:38]} 66. Be8 {[%emt 00:00:01] [%clk
00:00:07]} Re5 {[%emt 00:00:01] [%clk 00:00:38]} 67. Rb7+ {[%emt 00:00:03] [%clk
00:00:06]} Ka3 {[%emt 00:00:02] [%clk 00:00:39]} 68. Bb5 {[%emt 00:00:04] [%clk
00:00:04]} a4 {[%emt 00:00:05] [%clk 00:00:37]} 69. Bf1 {[%emt 00:00:03] [%clk
00:00:03]} Ra5 {[%emt 00:00:06] [%clk 00:00:33]} 70. g3 {[%emt 00:00:02] [%clk
00:00:03]} hxg3+ {[%emt 00:00:08] [%clk 00:00:26]} 71. Kxg3 {[%emt 00:00:01]
[%clk 00:00:04]} Ne6 {[%emt 00:00:01] [%clk 00:00:27]} 72. Bc4 {[%emt 00:00:05]}
Nc5 {[%emt 00:00:02] [%clk 00:00:25]} 73. Rb8 {[%emt 00:00:03] [%clk 00:00:03]}
Ne4 {[%emt 00:00:02] [%clk 00:00:25]} 74. Kg4 {[%emt 00:00:03] [%clk 00:00:03]}
Nf2+ {[%emt 00:00:03] [%clk 00:00:24]} 75. Kg3 {[%emt 00:00:01] [%clk 00:00:04]}
Nd1 {[%clk 00:00:25]} 76. Bf7 {[%emt 00:00:01] [%clk 00:00:05]} Nc3 {[%emt
00:00:03] [%clk 00:00:24]} 77. Kg4 {[%emt 00:00:02] [%clk 00:00:06]} Ne4 {[%emt
00:00:10] [%clk 00:00:15]} 78. Bc4 {[%emt 00:00:04] [%clk 00:00:04]} Nf2+ {[%emt
00:00:02] [%clk 00:00:15]} 79. Kg3 {[%clk 00:00:06]} Nd1 {[%emt 00:00:01] [%clk
00:00:15]} 80. Bf7 {[%emt 00:00:01] [%clk 00:00:06]} Rf5 {[%emt 00:00:02] [%clk
00:00:16]} 81. Bh5 {[%emt 00:00:02] [%clk 00:00:06]} Ne3 {[%emt 00:00:02] [%clk
00:00:16]} 82. Be8 {[%emt 00:00:01] [%clk 00:00:07]} Re5 {[%emt 00:00:02] [%clk
00:00:16]} 83. Ra8 {[%emt 00:00:01] [%clk 00:00:08]} Re4 {[%emt 00:00:03] [%clk
00:00:15]} 84. Bc6 {[%clk 00:00:09]} Rc4 {[%emt 00:00:01] [%clk 00:00:16]} 85.
Be8 {[%emt 00:00:01] [%clk 00:00:10]} Nf1 {[%emt 00:00:01] [%clk 00:00:16]} 86.
Kf2 {[%emt 00:00:01] [%clk 00:00:10]} Nd2 {[%emt 00:00:01] [%clk 00:00:17]} 87.
Ke3 {[%emt 00:00:04] [%clk 00:00:09]} Nb3 {[%emt 00:00:02] [%clk 00:00:17]} 88.
Kf3 {[%emt 00:00:02] [%clk 00:00:09]} Nc5 {[%emt 00:00:02] [%clk 00:00:17]} 89.
Bb5 {[%emt 00:00:04] [%clk 00:00:07]} Rb4 {[%emt 00:00:01] [%clk 00:00:18]} 90.
Be8 {[%emt 00:00:02] [%clk 00:00:07]} Kb3 {[%emt 00:00:01] [%clk 00:00:19]} 91.
Bf7+ {[%clk 00:00:08]} Kb2 {[%emt 00:00:01] [%clk 00:00:20]} 92. Ra5 {[%emt
00:00:03] [%clk 00:00:07]} Nb3 {[%emt 00:00:02] [%clk 00:00:20]} 93. Rxg5 {[%emt
00:00:04] [%clk 00:00:05]} a3 {[%emt 00:00:02] [%clk 00:00:21]} 94. Rg2+ {[%emt
00:00:02] [%clk 00:00:05]} Kb1 {[%emt 00:00:02] [%clk 00:00:21]} 95. Rg1+ {[%emt
00:00:02] [%clk 00:00:05]} Kc2 {[%emt 00:00:01] [%clk 00:00:22]} 96. Rg2+ {[%emt
00:00:03] [%clk 00:00:04]} Kc3 {[%emt 00:00:02] [%clk 00:00:22]} 97. Rh2 {[%emt
00:00:02] [%clk 00:00:04]} Rb7 {[%emt 00:00:04] [%clk 00:00:19]} 98. Bxb3 {[%emt
00:00:03] [%clk 00:00:04]} Kxb3 {[%emt 00:00:02] [%clk 00:00:19]} 99. h4 {[%clk
00:00:05]} Rb4 {[%emt 00:00:01] [%clk 00:00:20]} 100. Kg3 {[%emt 00:00:03] [%clk
00:00:04]} a2 {[%emt 00:00:01] [%clk 00:00:21]} 101. Rh1 {[%clk 00:00:05]} Kb2
{[%emt 00:00:01] [%clk 00:00:22]} 102. h5 {[%emt 00:00:01] [%clk 00:00:06]} a1=Q
{[%emt 00:00:03]} 103. Rxa1 {[%clk 00:00:07]} Kxa1 {[%clk 00:00:22]} 104. h6
{[%clk 00:00:08]} Rb6 {[%emt 00:00:01] [%clk 00:00:24]} 0-1

[Site "Europe Echecs"]